bitfinex/quotes_BTCUSD_20240715
["timestamp","ask_amount","ask_price","bid_price","bid_amount"]
[1721006825781,2.0009266,61792.0,61788.0,0.009163]
[1721006825985,2.1239266,61792.0,61788.0,0.009163]
[1721006826215,2.14022074,61792.0,61788.0,0.009163]
[1721006826419,7.19022074,61792.0,61788.0,0.009163]
[1721006826797,6.95612074,61792.0,61788.0,0.009163]
[1721006826970,7.19022074,61792.0,61788.0,0.009163]
[1721006827189,7.19622074,61792.0,61788.0,0.009163]
[1721006827499,7.35833865,61792.0,61788.0,0.009163]
[1721006828286,1.022595,61789.0,61788.0,0.009163]
[1721006828427,1.20862516,61789.0,61788.0,0.009163]
[1721006828630,6.25862516,61789.0,61788.0,0.009163]
[1721006829673,6.26035981,61789.0,61788.0,0.009163]
[1721006830271,3.95004681,61789.0,61788.0,0.009163]
[1721006830514,3.95304681,61789.0,61788.0,0.009163]
[1721006830912,4.45304681,61789.0,61788.0,0.009163]
[1721006831115,3.95304681,61789.0,61788.0,0.009163]
[1721006831399,4.24435981,61789.0,61788.0,0.009163]
[1721006831607,4.36542624,61789.0,61788.0,0.009163]
[1721006831833,2.85473381,61789.0,61788.0,0.009163]
[1721006832035,3.14604681,61789.0,61788.0,0.009163]
[1721006832234,2.98604681,61789.0,61788.0,0.009163]
[1721006832463,2.95904681,61789.0,61788.0,0.009163]
[1721006832821,2.95604681,61789.0,61788.0,0.009163]
[1721006833022,2.98145891,61789.0,61788.0,0.009163]
[1721006833222,2.98445891,61789.0,61788.0,0.009163]
[1721006835972,2.98602147,61789.0,61788.0,0.009163]
[1721006836569,2.95602147,61789.0,61788.0,0.009163]
[1721006836770,2.48402147,61789.0,61788.0,0.009163]
[1721006837136,2.04170847,61789.0,61788.0,0.009163]
[1721006837339,2.04170847,61789.0,61788.0,0.209163]
[1721006837540,2.04170847,61789.0,61788.0,0.009163]
[1721006838534,2.04170847,61789.0,61788.0,0.00887299]
[1721006838834,0.36039547,61789.0,61788.0,0.00887299]
[1721006839052,0.19173947,61789.0,61788.0,0.39075637]
[1721006839258,0.19173947,61789.0,61788.0,0.41546801]
[1721006839259,0.0274121,61789.0,61788.0,0.41546801]
[1721006839616,0.09045743,61789.0,61788.0,0.62112701]
[1721006840034,0.09045743,61789.0,61788.0,0.56112701]
[1721006840757,0.09045743,61789.0,61788.0,0.91244501]
[1721006840956,0.08845743,61789.0,61788.0,0.91244501]
[1721006841161,0.08845743,61789.0,61788.0,0.85244501]
[1721006841419,0.09045743,61789.0,61788.0,0.85244501]
[1721006841943,0.08845743,61789.0,61788.0,0.85244501]
[1721006842335,0.08945743,61789.0,61788.0,0.41546801]
[1721006842509,0.0764121,61789.0,61788.0,0.41546801]
[1721006842777,0.15978719,61789.0,61788.0,0.03358463]
[1721006842952,0.99459257,61789.0,61788.0,0.00887299]
[1721006843151,6.14459257,61789.0,61788.0,0.00887299]
[1721006843572,6.14359257,61789.0,61788.0,0.00887299]
[1721006844414,6.93490557,61789.0,61788.0,0.00887299]
[1721006844756,6.97102219,61789.0,61788.0,0.00887299]
[1721006845388,6.97002219,61789.0,61788.0,0.00887299]
[1721006845586,6.90794056,61789.0,61788.0,0.00887299]
[1721006845786,6.9704806,61789.0,61788.0,0.00887299]
[1721006846562,7.09140134,61789.0,61788.0,0.00887299]
[1721006846851,1.375102,61779.0,61769.0,0.471]
[1721006847077,6.87900304,61779.0,61767.0,0.02471164]
[1721006847281,6.90200304,61779.0,61767.0,0.02471164]
[1721006847486,7.02290634,61779.0,61767.0,0.02471164]
[1721006847646,7.0398343,61779.0,61766.0,0.02471164]
[1721006847851,7.0398343,61779.0,61768.0,0.02471164]
[1721006848052,7.0398343,61779.0,61765.0,0.06488338]
[1721006848053,7.0398343,61779.0,61771.0,0.02671164]
[1721006848256,6.918931,61779.0,61771.0,0.02671164]
[1721006848457,7.03982503,61779.0,61771.0,0.02671164]
[1721006848656,7.03982503,61779.0,61771.0,0.002]
[1721006848875,7.01240199,61779.0,61771.0,0.002]
[1721006849076,7.01240199,61779.0,61771.0,0.02671164]
[1721006849077,7.07516692,61779.0,61771.0,0.02671164]
[1721006849236,7.40736712,61779.0,61771.0,0.002]
[1721006849445,7.28647274,61779.0,61771.0,0.002]
[1721006849644,7.3617611,61779.0,61771.0,0.002]
[1721006849905,7.3697611,61779.0,61771.0,0.002]
[1721006850184,2.3197611,61779.0,61778.0,0.000353]
[1721006850374,7.3617611,61779.0,61778.0,0.000353]
[1721006850547,7.3617611,61779.0,61771.0,0.002]
[1721006850548,1.522879,61772.0,61771.0,0.002]
[1721006850753,7.78728498,61772.0,61771.0,0.002]
[1721006851161,7.86257334,61772.0,61771.0,0.002]
[1721006851380,1.586026,61763.0,61762.0,0.0122251]
[1721006851648,7.65905224,61763.0,61762.0,0.0122251]
[1721006852183,7.59628728,61763.0,61762.0,0.0122251]
[1721006852407,0.76671862,61762.0,61761.0,1e-08]
[1721006852628,6.32484139,61762.0,61761.0,1e-08]
[1721006852860,1.95741297,61762.0,61761.0,1e-08]
[1721006853090,1.95741297,61762.0,61751.0,0.002]
[1721006853091,1.94534598,61756.0,61751.0,0.002]
[1721006853323,0.78714862,61752.0,61751.0,0.002]
[1721006853583,6.60672521,61752.0,61751.0,0.002]
[1721006854098,6.64371479,61752.0,61751.0,0.002]
[1721006854320,1.231802,61745.0,61744.0,0.009163]
[1721006854570,0.62388159,61745.0,61744.0,0.009163]
[1721006854958,0.98288159,61745.0,61744.0,0.009163]
[1721006855364,0.32566278,61745.0,61744.0,0.009163]
[1721006855537,0.76458498,61745.0,61744.0,0.009163]
[1721006855941,0.47306398,61745.0,61744.0,0.009163]
[1721006856572,0.47306398,61745.0,61744.0,0.209163]
[1721006856749,0.13830398,61745.0,61744.0,0.209163]
[1721006856938,0.01366278,61745.0,61744.0,0.41575802]
[1721006857133,0.00470473,61751.0,61750.0,0.317]
[1721006857334,0.00470473,61751.0,61748.0,0.2]
[1721006857335,0.01684043,61751.0,61748.0,0.2]
[1721006857628,0.72878,61747.0,61746.0,0.02471164]
[1721006857803,5.7925569,61747.0,61746.0,0.02471164]
[1721006858022,0.14576,61745.0,61744.0,0.009163]
[1721006858211,1.2472201,61745.0,61744.0,0.009163]
[1721006858362,6.88905772,61745.0,61744.0,0.009163]
[1721006858542,6.88923007,61745.0,61744.0,0.009163]
[1721006858747,6.56259245,61745.0,61744.0,0.009163]
[1721006858962,2.75834816,61745.0,61744.0,0.009163]
[1721006859166,3.34139016,61745.0,61744.0,0.009163]
[1721006859780,3.34139016,61745.0,61744.0,0.07404638]
[1721006859781,0.11394925,61745.0,61744.0,0.07404638]
[1721006859991,0.11394925,61745.0,61744.0,0.39104638]
[1721006860201,0.1,61745.0,61744.0,0.39104638]
[1721006860412,0.3278304,61746.0,61745.0,0.08959502]
[1721006860626,0.00952508,61752.0,61751.0,0.317]
[1721006860938,0.145732,61757.0,61750.0,0.2]
[1721006860939,0.57,61753.0,61750.0,0.2]
[1721006861136,0.01820997,61752.0,61749.0,0.2]
[1721006861361,0.01820997,61752.0,61744.0,0.009163]
[1721006861362,0.437281,61745.0,61744.0,0.009163]
[1721006861577,0.74530769,61745.0,61744.0,0.009163]
[1721006861829,5.79530769,61745.0,61744.0,0.009163]
[1721006861957,2.74288997,61745.0,61744.0,0.009163]
[1721006862165,2.74588997,61745.0,61744.0,0.009163]
[1721006862478,2.74288997,61745.0,61744.0,0.009163]
[1721006862680,2.74588997,61745.0,61744.0,0.009163]
[1721006862904,2.75981793,61745.0,61744.0,0.009163]
[1721006863105,3.14893909,61745.0,61744.0,0.009163]
[1721006863877,3.08945555,61745.0,61744.0,0.009163]
[1721006864090,3.15245555,61745.0,61744.0,0.009163]
[1721006864289,3.23465555,61745.0,61744.0,0.009163]
[1721006864501,3.23465555,61745.0,61735.0,0.02471164]
[1721006864502,0.75860498,61732.0,61726.0,0.009163]
[1721006864725,2.52606035,61732.0,61726.0,0.009163]
[1721006864926,0.64640462,61730.0,61726.0,0.009163]
[1721006865131,6.65642405,61730.0,61729.0,0.00288834]
[1721006865333,0.93803162,61727.0,61726.0,0.009163]
[1721006865532,6.45263676,61727.0,61726.0,0.009163]
[1721006865735,1.72973562,61721.0,61720.0,0.0001]
[1721006865937,8.36061417,61721.0,61720.0,0.0001]
[1721006866141,8.36061417,61721.0,61711.0,0.002]
[1721006866142,1.232192,61712.0,61711.0,0.002]
[1721006866364,7.38756528,61712.0,61711.0,0.002]
[1721006866772,7.41056528,61712.0,61711.0,0.002]
[1721006867040,7.37544866,61712.0,61711.0,0.002]
[1721006867251,1.40526759,61712.0,61711.0,0.002]
[1721006867452,1.2993454,61712.0,61711.0,0.002]
[1721006867657,1.0076684,61712.0,61711.0,0.002]
[1721006867823,0.8883454,61712.0,61711.0,0.002]
[1721006868209,5.97646202,61712.0,61711.0,0.002]
[1721006868414,7.0240224,61712.0,61711.0,0.002]
[1721006868613,3.1686684,61712.0,61711.0,0.002]
[1721006868811,2.5463454,61712.0,61711.0,0.002]
[1721006869013,2.1453454,61712.0,61711.0,0.002]
[1721006869215,1.9233454,61712.0,61711.0,0.002]
[1721006869565,0.1,61712.0,61711.0,0.52698338]
[1721006869796,0.3278304,61719.0,61718.0,0.06488338]
[1721006870001,0.291623,61724.0,61722.0,0.257]
[1721006870002,0.14581,61724.0,61722.0,0.257]
[1721006870202,0.00306353,61723.0,61722.0,0.32188338]
[1721006870407,0.00306353,61724.0,61723.0,0.06488338]
[1721006870611,0.00989642,61729.0,61725.0,0.26488338]
[1721006870812,0.00470473,61730.0,61725.0,0.06488338]
[1721006870813,5.1974432,61728.0,61725.0,0.06488338]
[1721006871013,5.19886653,61727.0,61726.0,0.2]
[1721006871218,0.5,61722.0,61718.0,0.02471164]
[1721006871347,0.13438868,61730.0,61718.0,0.02471164]
[1721006871348,0.00306353,61721.0,61720.0,0.37888338]
[1721006871552,0.00306353,61721.0,61720.0,0.45578338]
[1721006871968,0.0016412,61726.0,61724.0,0.37888338]
[1721006871969,0.00306353,61725.0,61724.0,0.37888338]
[1721006872178,0.36706353,61725.0,61724.0,0.06488338]
[1721006872379,0.1,61725.0,61724.0,0.37888338]
[1721006872759,0.00966504,61731.0,61720.0,0.0769]
[1721006872760,0.00306353,61731.0,61730.0,0.37888338]
[1721006872968,0.003,61736.0,61732.0,0.2]
[1721006873172,0.003,61736.0,61731.0,0.06488338]
[1721006873173,0.15555941,61732.0,61731.0,0.06488338]
[1721006873375,0.145791,61732.0,61731.0,0.26488338]
[1721006873809,0.145791,61732.0,61731.0,0.06488338]
[1721006874014,0.145791,61732.0,61727.0,0.114]
[1721006874015,0.291601,61728.0,61727.0,0.2]
[1721006874242,0.1458,61728.0,61727.0,0.2]
[1721006874451,0.2687,61728.0,61727.0,0.2]
[1721006874795,0.2683,61728.0,61727.0,0.2]
[1721006875022,0.2682,61728.0,61727.0,0.314]
[1721006875419,0.268,61728.0,61726.0,0.2]
[1721006875625,0.10306353,61727.0,61726.0,0.37888338]
[1721006875826,0.1,61727.0,61726.0,0.37888338]
[1721006876835,0.25049873,61731.0,61730.0,0.37888338]
[1721006877036,0.245794,61731.0,61730.0,0.37888338]
[1721006877776,0.1,61731.0,61730.0,0.37888338]
[1721006877982,0.10470473,61732.0,61731.0,0.314]
[1721006878181,0.25049573,61732.0,61731.0,0.314]
[1721006878381,0.07528836,61740.0,61731.0,0.314]
[1721006878382,0.064981,61743.0,61731.0,0.314]
[1721006878585,0.0781,61759.0,61752.0,0.06488338]
[1721006878586,0.145732,61757.0,61752.0,0.06488338]
[1721006878784,0.291448,61761.0,61752.0,0.06488338]
[1721006878785,3.401,61756.0,61752.0,0.06488338]
[1721006879051,0.5,61762.0,61754.0,0.06488338]
[1721006879052,0.00306353,61755.0,61754.0,0.06488338]
[1721006879210,0.01999149,61755.0,61754.0,0.06488338]
[1721006879383,0.01692796,61755.0,61754.0,0.06488338]
[1721006879585,0.01692796,61755.0,61751.0,0.22471164]
[1721006879794,0.14574,61754.0,61752.0,0.06488338]
[1721006880292,0.145741,61753.0,61750.0,0.2]
[1721006880489,0.145741,61753.0,61752.0,0.06488338]
[1721006880711,0.145748,61751.0,61750.0,0.02471164]
[1721006880931,0.145748,61751.0,61742.0,0.0634]
[1721006880932,0.003,61746.0,61738.0,0.06488338]
[1721006881156,2.795,61751.0,61743.0,0.08959502]
[1721006881157,5.05,61745.0,61743.0,0.08959502]
[1721006881363,0.291512,61747.0,61743.0,0.08959502]
[1721006881364,5.05,61746.0,61743.0,0.08959502]
[1721006881629,5.05,61746.0,61741.0,0.22471164]
[1721006881630,0.291535,61742.0,61741.0,0.22471164]
[1721006881826,0.14577,61741.0,61740.0,0.02471164]
[1721006882029,0.14577,61741.0,61737.0,0.26488338]
[1721006882030,0.145772,61740.0,61739.0,0.02471164]
[1721006882234,0.268772,61740.0,61739.0,0.02471164]
[1721006882437,0.123,61740.0,61739.0,0.02471164]
[1721006883174,0.123,61740.0,61736.0,0.2]
[1721006883175,0.294559,61737.0,61736.0,0.2]
[1721006883454,0.145786,61734.0,61733.0,0.2]
[1721006883666,0.145786,61734.0,61733.0,0.26488338]
[1721006883667,0.1,61734.0,61733.0,0.26488338]
[1721006883891,0.145789,61733.0,61730.0,0.2]
[1721006884101,0.145789,61733.0,61729.0,0.02471164]
[1721006884102,0.10306353,61732.0,61729.0,0.02471164]
[1721006884319,0.10306353,61732.0,61729.0,0.22471164]
[1721006884521,0.023,61731.0,61730.0,0.2]
[1721006884644,0.023,61731.0,61727.0,0.0778]
[1721006884645,0.1,61732.0,61731.0,0.40359502]
[1721006885226,0.291541,61741.0,61734.0,0.2]
[1721006885227,0.291558,61738.0,61734.0,0.2]
[1721006885428,0.145783,61736.0,61733.0,0.06488338]
[1721006885712,0.10306353,61735.0,61730.0,0.2]
[1721006885930,0.145796,61730.0,61729.0,0.2]
[1721006886071,0.1,61730.0,61729.0,0.33871164]
[1721006886275,0.123,61730.0,61729.0,0.33871164]
[1721006886468,0.123,61730.0,61727.0,0.06488338]
[1721006886469,0.27185953,61730.0,61727.0,0.08959502]
[1721006886671,0.1,61729.0,61727.0,0.08959502]
[1721006886879,0.00306353,61728.0,61727.0,0.08959502]
[1721006887485,0.00306353,61728.0,61727.0,0.40359502]
[1721006887904,0.00306353,61729.0,61728.0,0.37888338]
[1721006888490,0.00306353,61731.0,61728.0,0.37888338]
[1721006888691,0.00306353,61731.0,61730.0,0.22471164]
[1721006888955,0.04031238,61731.0,61730.0,0.22471164]
[1721006889274,0.25324885,61731.0,61730.0,0.33871164]
[1721006889466,0.11424885,61731.0,61730.0,0.40359502]
[1721006889998,0.1,61731.0,61730.0,0.84098302]
[1721006890216,0.1,61731.0,61730.0,0.54939102]
[1721006890643,0.10306353,61740.0,61737.0,0.26488338]
[1721006890852,5.06368094,61739.0,61737.0,0.06488338]
[1721006891049,5.16674447,61738.0,61737.0,0.06488338]
[1721006891449,0.003,61735.0,61730.0,0.26488338]
[1721006891660,0.003,61730.0,61726.0,0.26488338]
[1721006891866,0.15947894,61729.0,61728.0,0.06488338]
[1721006892042,0.32467894,61729.0,61728.0,0.06488338]
[1721006892243,0.17888094,61729.0,61728.0,0.06488338]
[1721006892504,0.32467894,61729.0,61728.0,0.06488338]
[1721006892687,1.75454247,61729.0,61728.0,0.06488338]
[1721006892886,1.75454247,61729.0,61719.0,0.02471164]
[1721006892887,0.145801,61728.0,61724.0,0.06488338]
[1721006893058,0.145801,61728.0,61723.0,0.2]
[1721006893059,0.26254847,61727.0,61726.0,0.06488338]
[1721006893262,0.11674447,61727.0,61726.0,0.37888338]
[1721006893581,0.11356149,61727.0,61726.0,0.26488338]
[1721006893778,0.11356149,61727.0,61724.0,0.06488338]
[1721006893779,0.145808,61725.0,61724.0,0.06488338]
[1721006893982,0.437466,61719.0,61718.0,0.471]
[1721006894223,0.437466,61719.0,61714.0,0.06488338]
[1721006894224,0.145833,61715.0,61714.0,0.06488338]
[1721006894381,0.15939449,61715.0,61714.0,0.06488338]
[1721006894592,0.25939449,61715.0,61714.0,0.06488338]
[1721006894982,0.25939449,61715.0,61712.0,0.08959502]
[1721006895184,0.00306353,61713.0,61712.0,0.06488338]
[1721006895389,0.01662502,61713.0,61712.0,0.08959502]
[1721006895678,0.16246102,61713.0,61712.0,0.06488338]
[1721006895851,0.26246102,61713.0,61712.0,0.06488338]
[1721006896352,0.11356149,61713.0,61712.0,0.28959502]
[1721006896774,0.11356149,61713.0,61712.0,0.40359502]
[1721006896980,0.01356149,61713.0,61712.0,0.28959502]
[1721006897208,0.11356149,61713.0,61712.0,0.08959502]
[1721006897340,0.11356149,61713.0,61712.0,0.22471164]
[1721006897549,0.28239749,61713.0,61712.0,0.22471164]
[1721006897754,0.13656149,61713.0,61712.0,0.22471164]
[1721006897965,0.13656149,61713.0,61712.0,0.33871164]
[1721006898168,0.01356149,61713.0,61712.0,0.40359502]
[1721006899068,0.01356149,61713.0,61712.0,0.28959502]
[1721006899277,0.01356149,61713.0,61712.0,0.40359502]
[1721006899477,0.01356149,61713.0,61712.0,0.28959502]
[1721006899815,0.01662502,61713.0,61712.0,0.40359502]
[1721006899998,0.1,61715.0,61712.0,0.22471164]
[1721006899999,0.00306353,61714.0,61712.0,0.22471164]
[1721006900296,0.01337183,61713.0,61712.0,0.08959502]
[1721006900713,0.01337183,61713.0,61712.0,0.28959502]
[1721006903235,0.00306353,61714.0,61713.0,0.02471164]
[1721006903437,0.06772344,61714.0,61713.0,0.08959502]
[1721006903636,0.06465963,61714.0,61713.0,0.08959502]
[1721006903844,0.145833,61715.0,61714.0,0.06488338]
[1721006904043,0.3134941,61715.0,61714.0,0.08959502]
[1721006904207,5.3604941,61715.0,61714.0,0.08959502]
[1721006904664,5.39145466,61715.0,61714.0,0.08959502]
[1721006904891,5.9668201,61715.0,61714.0,0.02471164]
[1721006905098,0.794668,61714.0,61713.0,0.02471164]
[1721006905211,6.17822663,61714.0,61713.0,0.02464028]
[1721006905419,0.145838,61712.0,61711.0,0.09043666]
[1721006905626,4.8234991,61712.0,61711.0,0.09043666]
[1721006905864,4.8234991,61712.0,61711.0,0.40443666]
[1721006905865,2.8966611,61712.0,61711.0,0.40443666]
[1721006906211,1.1084991,61712.0,61711.0,0.40443666]
[1721006906330,1.0584991,61712.0,61711.0,0.40443666]
[1721006906531,0.9126611,61712.0,61711.0,0.40443666]
[1721006906747,0.1646611,61712.0,61711.0,0.40443666]
[1721006907152,0.1646611,61712.0,61711.0,0.37979638]
[1721006907468,0.1646611,61712.0,61711.0,0.40443666]
[1721006907849,0.1646611,61712.0,61711.0,0.09043666]
[1721006908053,5.2146611,61712.0,61711.0,0.09043666]
[1721006908262,2.4806611,61712.0,61711.0,0.09043666]
[1721006908464,2.4776611,61712.0,61711.0,0.09043666]
[1721006908684,2.73198345,61712.0,61711.0,0.09043666]
[1721006908926,1.1734991,61712.0,61711.0,0.40443666]
[1721006909068,0.9276611,61712.0,61711.0,0.40443666]
[1721006909274,0.9276611,61712.0,61711.0,0.09043666]
[1721006909470,1.3651761,61712.0,61711.0,0.06579638]
[1721006909681,1.82197101,61712.0,61711.0,0.09043666]
[1721006909887,1.82197101,61712.0,61711.0,0.06579638]
[1721006909888,1.67436446,61712.0,61711.0,0.06579638]
[1721006910121,1.96604146,61712.0,61711.0,0.000913]
[1721006910309,1.98904146,61712.0,61711.0,0.000913]
[1721006910544,2.08595345,61712.0,61711.0,0.000913]
[1721006911347,1.98604146,61712.0,61711.0,0.000913]
[1721006911594,1.98904146,61712.0,61711.0,0.000913]
[1721006912139,2.11017988,61712.0,61711.0,0.000913]
[1721006912375,2.10717988,61712.0,61711.0,0.000913]
[1721006912846,1.32359732,61712.0,61711.0,0.000913]
[1721006913120,1.25359732,61712.0,61711.0,0.000913]
[1721006913326,1.44998675,61712.0,61711.0,0.000913]
[1721006913531,0.79470419,61712.0,61711.0,0.37979638]
[1721006913739,0.18079475,61712.0,61711.0,0.40443666]
[1721006913964,0.08079475,61712.0,61711.0,0.40443666]
[1721006914176,0.18079475,61712.0,61711.0,0.40443666]
[1721006914374,0.08079475,61712.0,61711.0,0.61027766]
[1721006914523,0.08079475,61712.0,61711.0,0.90195966]
[1721006914692,0.02991902,61712.0,61711.0,0.90195966]
[1721006916298,0.01692796,61712.0,61711.0,1.33424166]
[1721006916590,0.02944326,61712.0,61711.0,1.33424166]
[1721006916805,0.02944326,61712.0,61711.0,1.62592366]
[1721006917026,0.02944326,61712.0,61711.0,1.33424166]
[1721006917840,0.02944326,61712.0,61711.0,1.53424166]
[1721006918041,0.02944326,61712.0,61711.0,1.82592366]
[1721006918245,0.02944326,61712.0,61711.0,1.62592366]
[1721006918662,0.02944326,61712.0,61711.0,1.92592366]
[1721006918833,0.02944326,61712.0,61711.0,2.09682366]
[1721006919039,0.01692796,61712.0,61711.0,1.72592366]
[1721006919269,0.02894321,61712.0,61711.0,1.72592366]
[1721006919700,0.0282889,61712.0,61711.0,1.72592366]
[1721006920842,0.0282889,61712.0,61711.0,1.62592366]
[1721006921050,0.0282889,61712.0,61711.0,1.04255966]
[1721006921230,0.0282889,61712.0,61711.0,0.48015328]
[1721006921441,0.0282889,61712.0,61711.0,0.54503666]
[1721006922113,0.07793385,61712.0,61711.0,0.48363666]
[1721006922329,0.01692796,61712.0,61711.0,0.48363666]
[1721006922537,0.06710743,61712.0,61711.0,0.48363666]
[1721006922746,0.0793769,61712.0,61711.0,0.48363666]
[1721006922925,0.01692796,61712.0,61711.0,0.48363666]
[1721006923133,0.02919784,61712.0,61711.0,0.48363666]
[1721006923325,0.06710797,61712.0,61711.0,0.48363666]
[1721006923522,0.07937785,61712.0,61711.0,0.54363666]
[1721006924062,0.07937785,61712.0,61711.0,1.27284166]
[1721006924271,0.02919784,61712.0,61711.0,1.27284166]
[1721006924392,0.02919784,61712.0,61711.0,1.26637318]
[1721006925249,0.02919784,61712.0,61711.0,0.97469118]
[1721006925615,0.01692796,61712.0,61711.0,0.97469118]
[1721006925854,0.02919784,61712.0,61711.0,0.97469118]
[1721006926431,0.02958917,61712.0,61711.0,0.97469118]
[1721006928213,0.02958917,61712.0,61711.0,1.26637318]
[1721006928410,0.02958917,61712.0,61711.0,1.55805518]
[1721006929579,0.01692796,61712.0,61711.0,1.55805518]
[1721006929788,0.02979996,61712.0,61711.0,1.55629893]
[1721006931888,0.02979996,61712.0,61711.0,0.39621193]
[1721006932076,0.080988,61712.0,61711.0,0.39621193]
[1721006932529,0.226826,61712.0,61711.0,0.06488338]
[1721006932731,0.145843,61710.0,61709.0,0.26488338]
[1721006932863,0.145843,61710.0,61708.0,0.13132855]
[1721006932864,0.142,61710.0,61708.0,0.06488338]
[1721006933050,0.60277156,61709.0,61708.0,0.26488338]
[1721006933251,0.43243606,61709.0,61708.0,0.26488338]
[1721006934070,0.31108056,61709.0,61708.0,0.26488338]
[1721006934418,0.72412706,61709.0,61708.0,0.26488338]
[1721006934569,0.31108056,61709.0,61708.0,0.26488338]
[1721006934776,0.43245452,61709.0,61708.0,0.26488338]
[1721006935579,0.43245452,61709.0,61708.0,0.28776741]
[1721006935925,0.43243942,61709.0,61708.0,0.28776741]
[1721006936239,0.31106546,61709.0,61708.0,0.28776741]
[1721006936439,0.31106399,61709.0,61708.0,0.28776741]
[1721006936566,0.31106399,61709.0,61708.0,0.39621193]
[1721006937184,0.16521899,61709.0,61708.0,0.38982298]
[1721006937427,0.28664909,61709.0,61708.0,0.38982298]
[1721006937783,0.28664909,61709.0,61702.0,0.3039451]
[1721006937784,0.43758,61703.0,61702.0,0.03510913]
[1721006937986,0.91751899,61703.0,61702.0,0.03510913]
[1721006938507,0.91751899,61703.0,61702.0,0.0122251]
[1721006938508,6.62494695,61703.0,61702.0,0.0122251]
[1721006938709,7.6148753,61703.0,61702.0,0.0122251]
[1721006938933,7.77874724,61703.0,61702.0,0.0122251]
[1721006939140,7.1148753,61703.0,61702.0,0.0122251]
[1721006939314,7.6148753,61703.0,61702.0,0.0122251]
[1721006939517,7.64268611,61703.0,61702.0,0.0122251]
[1721006939725,7.14568611,61703.0,61702.0,0.0122251]
[1721006939929,2.13704449,61703.0,61702.0,0.0122251]
[1721006940132,7.13904449,61703.0,61702.0,0.0122251]
[1721006940379,6.70404449,61703.0,61702.0,0.0122251]
[1721006940609,1.23822449,61703.0,61702.0,0.0122251]
[1721006940810,1.24797291,61703.0,61702.0,0.0122251]
[1721006940961,1.85441291,61703.0,61702.0,0.0122251]
[1721006941161,1.85741291,61703.0,61702.0,0.0122251]
[1721006941366,1.53969291,61703.0,61702.0,0.0122251]
[1721006941570,2.03969291,61703.0,61702.0,0.0122251]
[1721006941730,1.53969291,61703.0,61702.0,0.0122251]
[1721006942141,1.53969291,61703.0,61702.0,0.32066962]
[1721006942142,0.72914547,61703.0,61702.0,0.32066962]
[1721006942391,0.72914547,61703.0,61702.0,0.40204808]
[1721006942392,0.08431409,61703.0,61702.0,0.40204808]
[1721006942794,0.18138268,61703.0,61702.0,0.40204808]
[1721006942996,0.08431409,61703.0,61702.0,0.40204808]
[1721006945018,0.18431409,61703.0,61702.0,0.40204808]
[1721006945498,0.18431409,61703.0,61702.0,0.0122251]
[1721006945499,1.46846802,61703.0,61702.0,0.0122251]
[1721006945709,1.46846802,61703.0,61672.0,0.471]
[1721006945710,0.014256,61678.0,61672.0,0.471]
[1721006945923,1.06443713,61678.0,61675.0,0.4863143]
[1721006946131,1.17318113,61678.0,61672.0,0.05849443]
[1721006946311,1.46501913,61678.0,61672.0,0.05849443]
[1721006946514,2.51629533,61678.0,61672.0,0.05849443]
[1721006946659,2.51629533,61678.0,61672.0,0.25849443]
[1721006946660,1.47345733,61678.0,61672.0,0.25849443]
[1721006946865,0.72550513,61678.0,61676.0,0.2]
[1721006947109,0.16738613,61678.0,61677.0,0.39321608]
[1721006947306,0.11478964,61678.0,61677.0,0.39321608]
[1721006947685,0.11478964,61678.0,61677.0,0.53913708]
[1721006948087,0.1,61678.0,61677.0,0.39321608]
[1721006948289,0.11447536,61678.0,61677.0,0.39321608]
[1721006948488,0.26039436,61678.0,61677.0,0.08477156]
[1721006948711,0.26039436,61678.0,61677.0,0.0033931]
[1721006948712,2.74933236,61678.0,61677.0,0.0033931]
[1721006948914,6.05547254,61678.0,61677.0,0.0033931]
[1721006949273,6.05547254,61678.0,61677.0,0.02627713]
[1721006949274,1.0794331,61678.0,61677.0,0.02627713]
[1721006949480,0.712233,61672.0,61671.0,0.002]
[1721006949686,2.06368988,61672.0,61671.0,0.002]
[1721006949885,2.1328649,61672.0,61671.0,0.002]
[1721006950033,7.3907375,61672.0,61671.0,0.002]
[1721006950447,7.4409649,61672.0,61671.0,0.002]
[1721006950637,6.9149649,61672.0,61671.0,0.002]
[1721006950844,6.8647375,61672.0,61671.0,0.002]
[1721006951257,6.86149085,61672.0,61671.0,0.002]
[1721006951460,7.02360876,61672.0,61671.0,0.002]
[1721006951835,6.86149085,61672.0,61671.0,0.002]
[1721006952249,6.92079085,61672.0,61671.0,0.002]
[1721006953292,6.97101825,61672.0,61671.0,0.002]
[1721006953498,6.92079085,61672.0,61671.0,0.002]
[1721006953691,6.93771881,61672.0,61671.0,0.002]
[1721006954048,1.70536741,61672.0,61671.0,0.002]
[1721006954166,0.12983701,61672.0,61671.0,0.002]
[1721006954371,0.02983701,61672.0,61671.0,0.39182298]
[1721006954796,0.02983701,61672.0,61671.0,0.08337846]
[1721006955198,0.02983701,61672.0,61671.0,0.39182298]
[1721006955398,0.02983701,61672.0,61671.0,0.53775798]
[1721006955399,0.01692796,61672.0,61671.0,0.53775798]
[1721006955606,0.01692796,61672.0,61671.0,0.60205798]
[1721006955825,0.01692796,61672.0,61671.0,0.45612298]
[1721006956639,0.01692796,61672.0,61671.0,0.39182298]
[1721006956855,0.01692796,61672.0,61671.0,0.53775798]
[1721006957154,0.01692796,61672.0,61671.0,0.89102898]
[1721006957328,0.01692796,61672.0,61671.0,1.32429998]
[1721006957888,0.01692796,61672.0,61671.0,0.82649398]
[1721006958082,0.01692796,61672.0,61671.0,0.88649398]
[1721006958481,0.01692796,61672.0,61671.0,0.53462298]
[1721006958922,0.01692796,61672.0,61671.0,0.97242898]
[1721006959595,0.01692796,61672.0,61671.0,0.47322298]
[1721006959796,0.01692796,61672.0,61671.0,0.36893895]
[1721006960017,0.01692796,61672.0,61671.0,0.31044452]
[1721006960240,0.01692796,61672.0,61671.0,0.002]
[1721006960241,0.16286096,61672.0,61671.0,0.002]
[1721006960497,0.27340127,61672.0,61671.0,0.202]
[1721006960787,5.73523758,61672.0,61671.0,0.002]
[1721006960940,5.61532009,61672.0,61671.0,0.002]
[1721006961350,0.62652109,61672.0,61671.0,0.06049443]
[1721006961550,0.62652109,61672.0,61671.0,0.36893895]
[1721006961775,0.60052109,61672.0,61671.0,0.06049443]
[1721006961954,0.74645409,61672.0,61671.0,0.06049443]
[1721006962603,0.60052109,61672.0,61671.0,0.06049443]
[1721006962979,0.60052109,61672.0,61671.0,0.36893895]
[1721006963359,1.40624352,61672.0,61671.0,0.002]